bitfinex/quotes_ETHUSD_20210401
["timestamp","ask_amount","ask_price","bid_price","bid_amount"]
[1617297989146,2.71503426,1954.1,1954.0,30.5525299]
[1617297989742,3.71503426,1954.1,1954.0,29.8299299]
[1617297989944,3.71503426,1954.1,1954.0,28.2299299]
[1617297990782,3.71503426,1954.1,1954.0,23.1835]
[1617297990982,6.26503426,1954.1,1954.0,23.1835]
[1617297991182,6.26503426,1954.1,1954.0,24.3835]
[1617297991785,6.26503426,1954.1,1954.0,24.3335]
[1617297991986,6.26503426,1954.1,1954.0,29.8735]
[1617297992381,6.1,1954.1,1954.0,29.8735]
[1617297992583,5.26503426,1954.1,1954.0,30.2635]
[1617297993591,5.26503426,1954.1,1954.0,37.8146]
[1617297997410,4.26503426,1954.1,1954.0,37.8146]
[1617297998412,6.81503426,1954.1,1954.0,37.8146]
[1617297999242,6.81503426,1954.1,1954.0,37.4246]
[1617298001864,6.81503426,1954.1,1954.0,31.8846]
[1617298002064,6.81503426,1954.1,1954.0,24.3335]
[1617298002470,5.81503426,1954.1,1954.0,24.3335]
[1617298003067,5.81503426,1954.1,1954.0,25.35447736]
[1617298003267,5.81503426,1954.1,1954.0,31.21447736]
[1617298005095,5.81503426,1954.1,1954.0,30.83447736]
[1617298005292,5.81503426,1954.1,1954.0,33.39209406]
[1617298005494,5.81503426,1954.1,1954.0,32.3711167]
[1617298005892,8.36503426,1954.1,1954.0,32.3711167]
[1617298006532,8.36503426,1954.1,1954.0,33.38083517]
[1617298006933,8.36503426,1954.1,1954.0,33.33083517]
[1617298007534,7.36503426,1954.1,1954.0,33.33083517]
[1617298007933,7.36503426,1954.1,1954.0,32.3211167]
[1617298009139,7.36503426,1954.1,1954.0,33.32953037]
[1617298010540,7.36503426,1954.1,1954.0,32.3211167]
[1617298011541,7.36503426,1954.1,1954.0,33.35459179]
[1617298012569,6.36503426,1954.1,1954.0,33.74459179]
[1617298013170,6.36503426,1954.1,1954.0,32.7111167]
[1617298013373,8.91503426,1954.1,1954.0,32.7111167]
[1617298014396,8.91503426,1954.1,1954.0,33.74307231]
[1617298014994,8.91503426,1954.1,1954.0,32.7111167]
[1617298015598,8.91503426,1954.1,1954.0,32.3211167]
[1617298017018,8.91503426,1954.1,1954.0,32.7111167]
[1617298017421,7.91503426,1954.1,1954.0,32.7111167]
[1617298017622,7.91503426,1954.1,1954.0,41.4063167]
[1617298018421,24.3934,1954.6,1954.1,11.25]
[1617298018624,24.3934,1954.6,1954.3,3.83625]
[1617298018822,24.3934,1954.6,1954.4,5.01]
[1617298019067,24.3934,1954.6,1954.4,12.68249]
[1617298019266,24.3934,1954.6,1954.5,14.01]
[1617298019866,24.3934,1954.6,1954.5,21.68283]
[1617298020871,26.9434,1954.6,1954.5,21.68283]
[1617298023704,26.69345937,1954.6,1954.5,25.12283]
[1617298024103,25.77540822,1954.6,1954.5,25.12283]
[1617298025502,25.77540822,1954.6,1954.5,24.74283]
[1617298025703,25.77540822,1954.6,1954.5,21.68283]
[1617298027520,25.77540822,1954.6,1954.5,22.06283]
[1617298027721,25.77540822,1954.6,1954.5,27.70283]
[1617298028322,28.32540822,1954.6,1954.5,27.70283]
[1617298029519,27.32540822,1954.6,1954.5,27.70283]
[1617298033781,27.32540822,1954.6,1954.5,27.32283]
[1617298034577,26.32540822,1954.6,1954.5,27.32283]
[1617298035802,28.87540822,1954.6,1954.5,27.32283]
[1617298038251,28.87540822,1954.6,1954.5,21.68283]
[1617298039047,1.0,1954.9,1954.6,18.95]
[1617298039254,16.15,1955.6,1954.9,15.31451258]
[1617298039453,16.15,1955.6,1955.1,21.30640332]
[1617298039647,16.15,1955.6,1955.2,12.89991031]
[1617298039847,16.15,1955.6,1955.4,5.01]
[1617298040048,16.15,1955.6,1955.5,7.29]
[1617298040248,15.47099229,1955.6,1955.5,15.88837]
[1617298040654,15.47099229,1955.6,1955.5,24.88837]
[1617298042053,15.47099229,1955.6,1955.5,24.49837]
[1617298042453,16.47099229,1955.6,1955.5,24.49837]
[1617298043272,19.02099229,1955.6,1955.5,24.49837]
[1617298043473,19.02099229,1955.6,1955.5,24.89837]
[1617298044476,18.02099229,1955.6,1955.5,24.89837]
[1617298045073,17.40435982,1955.6,1955.5,24.89837]
[1617298045672,17.40435982,1955.6,1955.5,26.09837]
[1617298045898,17.40435982,1955.6,1955.5,27.2087397]
[1617298046096,17.40435982,1955.6,1955.5,26.09837]
[1617298046696,16.96393093,1955.6,1955.5,26.09837]
[1617298047102,14.69815263,1955.6,1955.5,26.09837]
[1617298047496,4.47619263,1955.6,1955.5,34.09837]
[1617298047897,2.87653826,1955.6,1955.5,34.09837]
[1617298048296,2.87653826,1955.6,1955.5,22.09837]
[1617298048727,24.99,1955.7,1955.6,15.2]
[1617298048930,19.87943,1955.7,1955.6,15.6]
[1617298049131,19.87943,1955.7,1955.6,21.24]
[1617298049537,18.87943,1955.7,1955.6,21.24]
[1617298049933,18.87943,1955.7,1955.6,22.44]
[1617298051171,18.55732483,1955.7,1955.6,22.44]
[1617298051783,18.55732483,1955.7,1955.6,5.64]
[1617298052378,18.55732483,1955.7,1955.5,16.66837]
[1617298052575,18.55732483,1955.7,1955.5,7.66837]
[1617298052775,18.55732483,1955.7,1955.6,1.94431153]
[1617298053378,18.55732483,1955.7,1955.6,12.9]
[1617298053773,18.55732483,1955.7,1955.6,14.08577824]
[1617298053977,13.44739483,1955.7,1955.6,25.26907952]
[1617298054182,14.5696,1956.5,1956.2,13.11088]
[1617298054183,12.68828303,1956.5,1956.2,13.11088]
[1617298054379,18.2254,1956.9,1956.3,0.41]
[1617298054380,18.6154,1956.9,1956.3,0.41]
[1617298054581,17.2254,1956.9,1956.4,0.39]
[1617298054779,2.96,1956.9,1956.6,7.66407]
[1617298054988,0.38,1956.8,1956.6,10.59347125]
[1617298055382,0.38,1956.8,1956.6,6.76131125]
[1617298055580,0.38,1956.8,1956.6,9.88131125]
[1617298056399,7.79,1956.7,1956.6,9.88131125]
[1617298056800,0.39,1956.7,1956.6,9.88131125]
[1617298057199,0.39,1956.7,1956.6,10.90655388]
[1617298057401,0.39,1956.7,1956.6,1.02524263]
[1617298057803,15.34,1956.7,1956.6,1.02524263]
[1617298058203,17.89,1956.7,1956.6,1.02524263]
[1617298058404,19.09,1956.7,1956.3,7.66686]
[1617298058607,0.38,1956.4,1955.8,5.11094]
[1617298058805,0.4,1956.0,1955.8,5.11094]
[1617298059028,28.9477,1956.6,1955.9,16.19387]
[1617298059230,28.9477,1956.6,1955.9,14.818343]
[1617298059231,19.7041,1956.6,1955.9,14.818343]
[1617298059628,0.4,1956.4,1955.9,15.218343]
[1617298059828,19.1141,1956.6,1956.2,7.66655]
[1617298060231,19.1141,1956.6,1956.0,14.05545]
[1617298060630,3.42,1956.5,1956.0,10.22206]
[1617298060829,0.4,1956.1,1955.6,12.77589]
[1617298061650,0.54,1956.1,1955.6,13.05589]
[1617298061854,0.4,1955.9,1955.6,12.77589]
[1617298062052,0.41,1955.8,1955.4,10.31785894]
[1617298062253,0.41,1955.7,1955.4,10.22379]
[1617298062856,0.14,1955.8,1955.5,0.38]
[1617298063053,0.14,1955.8,1955.4,12.92379]
[1617298063852,0.41,1955.7,1955.4,12.92379]
[1617298064684,0.41,1955.9,1955.5,4.85]
[1617298064884,0.405,1956.3,1955.5,2.72]
[1617298065085,0.38,1956.2,1955.5,5.41]
[1617298065685,2.93,1956.2,1955.5,0.4]
[1617298065886,2.93,1956.2,1955.5,8.07005]
[1617298066086,2.93,1956.2,1955.6,8.84448]
[1617298066490,0.41,1956.0,1955.6,3.83448]
[1617298066686,0.39,1955.9,1955.4,10.31785894]
[1617298066894,0.39,1955.9,1955.4,10.22379]
[1617298067092,2.55,1956.2,1955.4,10.22379]
[1617298067093,2.55,1956.2,1955.4,10.60379]
[1617298067295,0.41,1956.1,1955.6,7.66984]
[1617298067694,2.55,1956.2,1955.6,8.04984]
[1617298067896,2.55,1956.2,1955.7,0.41]
[1617298068298,2.55,1956.2,1955.8,5.01]
[1617298068497,0.38,1956.1,1955.6,14.0595]
[1617298069098,2.55,1956.2,1955.6,14.0595]
[1617298069099,0.41,1956.0,1955.6,14.0595]
[1617298069517,1.55,1956.2,1955.6,17.89406]
[1617298069718,1.93,1956.2,1955.6,18.27406]
[1617298069918,1.93,1956.2,1955.6,7.6691]
[1617298070520,1.55,1956.2,1955.7,0.39]
[1617298070726,1.55,1956.2,1955.9,7.66876]
[1617298070921,1.55,1956.2,1955.9,10.40876]
[1617298072350,1.55,1956.2,1955.9,6.57388]
[1617298073149,4.1,1956.2,1956.0,7.66805]
[1617298074549,3.49,1956.2,1956.0,7.61805]
[1617298074773,3.1,1956.2,1955.8,3.83424]
[1617298074973,3.05,1956.2,1955.7,5.42]
[1617298075174,3.127,1956.2,1955.6,8.0]
[1617298075374,3.127,1956.2,1955.6,0.39]
[1617298075774,3.127,1956.2,1955.8,7.66897]
[1617298076375,3.127,1956.2,1955.8,7.94897]
[1617298076775,3.127,1956.2,1955.8,8.34897]
[1617298077176,3.05,1956.2,1956.1,20.74]
[1617298077404,3.05,1956.2,1956.1,4.25]
[1617298077603,3.05,1956.2,1956.1,3.07547866]
[1617298078004,3.05,1956.2,1956.0,7.0544004]
[1617298078203,3.05,1956.2,1956.1,12.67727]
[1617298078607,3.05,1956.2,1956.1,7.66727]
[1617298079026,3.05,1956.2,1956.1,10.34727]
[1617298079215,3.05,1956.2,1955.8,8.0]
[1617298079413,3.08547866,1956.1,1955.8,8.0]
[1617298080032,0.4,1956.1,1955.8,8.0]
[1617298080435,5.63547866,1956.1,1955.8,8.0]
[1617298080636,2.7,1956.0,1955.8,0.41]
[1617298081239,2.55,1956.1,1955.8,0.41]
[1617298081439,2.55,1956.1,1955.8,3.83415]
[1617298082036,2.55,1956.1,1955.9,7.66773]
[1617298082236,2.55,1956.1,1956.0,5.01]
[1617298082435,2.55,1956.1,1955.9,10.90773]
[1617298082848,2.55,1956.1,1955.9,3.24]
[1617298083449,2.55,1956.1,1955.9,3.65]
[1617298084249,2.55,1956.1,1956.0,5.39]
[1617298084451,2.55,1956.1,1956.0,13.05749]
[1617298084648,2.55,1956.1,1956.0,16.37749]
[1617298088099,5.1,1956.1,1956.0,16.37749]
[1617298090104,5.1,1956.1,1956.0,16.00739]
[1617298090527,5.1,1956.1,1956.0,16.41739]
[1617298091327,5.1,1956.1,1956.0,16.00739]
[1617298092130,5.1,1956.1,1956.0,16.39739]
[1617298094163,5.1,1956.1,1956.0,16.00739]
[1617298094359,5.1,1956.1,1956.0,25.58739]
[1617298094955,3.0395,1956.2,1956.0,25.58739]
[1617298095156,3.0395,1956.2,1956.1,10.37555356]
[1617298095355,2.55,1956.2,1956.1,20.76555356]
[1617298095556,2.55,1956.2,1956.1,18.06595]
[1617298095813,1.55,1956.2,1956.1,5.3899]
[1617298096014,1.55,1956.2,1956.1,0.0099]
[1617298096412,11.0,1956.2,1956.1,0.0099]
[1617298096613,10.05,1956.1,1955.9,3.79394]
[1617298097613,1.55,1956.2,1956.0,12.67808]
[1617298097812,1.55,1956.2,1956.1,5.01]
[1617298098612,1.55,1956.2,1955.9,14.01805]
[1617298099011,1.55,1956.2,1956.1,7.66825]
[1617298099213,8.65,1956.2,1956.1,7.66825]
[1617298099413,1.55,1956.2,1956.1,7.66825]
[1617298100215,10.6,1956.2,1956.1,7.66825]
[1617298100616,0.55,1956.2,1956.1,7.66825]
[1617298101227,0.55,1956.2,1956.1,8.32825]
[1617298101826,0.55,1956.2,1956.1,7.94825]
[1617298102027,0.55,1956.2,1956.1,7.66825]
[1617298102427,12.55,1956.2,1956.1,10.34825]
[1617298102827,15.1,1956.2,1956.1,10.34825]
[1617298103655,15.1,1956.2,1956.1,7.66825]
[1617298104455,15.49,1956.2,1955.9,5.01]
[1617298104656,15.49,1956.2,1956.1,5.01]
[1617298104858,15.49,1956.2,1955.9,5.01]
[1617298105053,15.49,1956.2,1956.1,5.01]
[1617298105453,15.49,1956.2,1955.7,10.22517]
[1617298105654,0.14,1956.1,1955.7,10.60517]
[1617298105854,0.14,1956.1,1955.8,1.2]
[1617298106294,19.4951,1956.1,1955.3,4.49406894]
[1617298106487,0.14,1955.9,1955.4,1.2]
[1617298106886,14.068,1956.0,1955.4,0.0001]
[1617298106887,0.4,1955.6,1955.4,0.0001]
[1617298107087,0.4,1955.6,1955.3,4.0]
[1617298107088,7.1521,1955.6,1955.3,4.0]
[1617298107287,5.58,1955.4,1955.3,4.0]
[1617298107491,5.58,1955.4,1954.7,0.53378]
[1617298107492,27.45,1955.3,1954.7,0.62784894]
[1617298107687,0.14,1955.1,1954.7,0.53378]
[1617298107886,0.41,1955.0,1954.7,0.53378]
[1617298108483,8.2242,1955.1,1954.7,0.53378]
[1617298108685,6.14,1955.0,1954.7,0.53378]
[1617298110326,8.69,1955.0,1954.7,0.53378]
[1617298110527,7.02,1954.9,1954.7,0.53378]
[1617298110727,2.55,1955.0,1954.7,0.92378]
[1617298111545,2.55,1955.0,1954.7,0.53378]
[1617298111747,2.55,1955.0,1954.7,5.54378]
[1617298112751,2.55,1955.0,1954.8,5.01]
[1617298113547,2.55,1955.0,1954.7,8.20695]
[1617298114554,2.55,1955.0,1954.7,8.58695]
[1617298114754,2.55,1955.0,1954.7,12.70695]
[1617298115755,1.55,1955.0,1954.8,0.39]
[1617298115954,1.55,1955.0,1954.8,7.67278]
[1617298116355,1.55,1955.0,1954.8,7.95278]
[1617298116989,1.55,1955.0,1954.8,7.67278]
[1617298117790,4.1,1955.0,1954.8,7.67278]
[1617298120614,4.1,1955.0,1954.7,0.92378]
[1617298120808,3.1,1955.0,1954.7,0.92378]
[1617298121008,3.1,1955.0,1954.7,0.53378]
[1617298122233,3.05,1955.0,1954.7,0.53378]
[1617298124239,5.02,1954.9,1954.7,0.53378]
[1617298124658,35.02,1954.9,1954.7,0.53378]
[1617298124857,36.22,1954.9,1954.3,10.2317]
[1617298125060,31.85,1954.8,1954.3,10.2317]
[1617298125264,31.34,1954.7,1954.3,10.2317]
[1617298125460,30.14,1954.7,1954.3,10.2317]
[1617298125663,4.46,1954.6,1954.3,10.2317]
[1617298125866,4.46,1954.6,1954.3,10.5117]
[1617298126060,2.55,1954.9,1954.5,0.39]
[1617298126262,2.69,1954.9,1954.5,0.39]
[1617298126461,4.9,1954.8,1954.6,0.39]
[1617298126661,2.69,1954.9,1954.6,0.39]
[1617298126861,2.69,1954.9,1954.3,10.6417]
[1617298127063,2.69,1954.9,1954.6,7.67395]
[1617298127064,33.89,1954.9,1954.6,7.67395]
[1617298127308,33.89,1954.9,1954.3,10.2317]
[1617298127309,34.29,1954.9,1954.3,10.2317]
[1617298127509,8.72,1954.8,1954.2,10.23312]
[1617298127712,7.7,1954.6,1954.1,6.11566]
[1617298127910,0.14,1954.5,1954.1,6.11566]
[1617298128110,0.14,1954.5,1954.1,16.34921]
[1617298128710,0.53,1954.5,1954.1,16.34921]
[1617298128910,5.72,1954.4,1954.1,11.23355]
[1617298129112,1.2,1954.3,1954.1,1.0]
[1617298129311,12.5653,1954.4,1954.1,1.0]
[1617298129510,5.42,1954.3,1954.1,1.0]
[1617298129709,6.32,1954.2,1954.1,1.0]
[1617298129909,0.14,1954.4,1954.1,1.0]
[1617298130710,0.34,1954.6,1954.1,1.4]
[1617298130911,41.5252597,1954.7,1954.1,9.07607]
[1617298131115,6.66,1954.6,1954.2,0.41]
[1617298131311,37.86,1954.6,1954.2,0.41]
[1617298131510,48.1852597,1954.6,1954.2,0.41]
[1617298131712,6.66,1954.6,1954.2,0.41]
[1617298131910,36.66,1954.6,1954.2,0.41]
[1617298132311,5.48,1954.5,1954.1,1.0]
[1617298132535,6.32,1954.4,1954.1,1.4]
[1617298132736,20.8437,1954.8,1954.3,0.39]
[1617298132737,2.55,1954.6,1954.3,0.39]
[1617298132938,2.55,1954.6,1954.4,0.39]
[1617298133745,2.55,1954.6,1954.3,0.28]
[1617298133940,2.55,1954.6,1954.4,8.07507]
[1617298134138,2.55,1954.6,1954.4,10.81507]
[1617298134339,2.55,1954.6,1954.4,8.07507]
[1617298135364,2.55,1954.6,1954.5,0.38]
[1617298135764,1.55,1954.6,1954.5,0.38]
[1617298136565,1.55,1954.6,1954.4,7.67507]
[1617298136765,1.55,1954.6,1954.4,11.51227]
[1617298136966,1.55,1954.6,1954.3,12.2787262]
[1617298137365,4.78,1954.5,1954.3,12.2787262]
[1617298137564,4.78,1954.5,1954.3,10.23222]
[1617298137983,4.78,1954.5,1954.4,0.4]
[1617298138182,1.55,1954.6,1954.4,0.4]
[1617298138582,1.55,1954.6,1954.5,0.39]
[1617298139186,1.55,1954.6,1954.5,13.35361]
[1617298139583,1.55,1954.6,1954.5,8.34361]
[1617298140183,4.1,1954.6,1954.5,8.06361]
[1617298140829,3.1,1954.6,1954.5,8.06361]
[1617298142431,3.05,1954.6,1954.5,8.06361]
[1617298145860,3.05,1954.6,1954.5,13.07361]
[1617298146860,10.05,1954.6,1954.5,7.67361]
[1617298147058,18.875,1954.6,1954.5,7.67361]
[1617298147455,21.425,1954.6,1954.5,7.67361]
[1617298148486,21.425,1954.6,1954.1,11.23468]
[1617298148487,52.625,1954.6,1954.1,11.23468]
[1617298148685,8.34,1954.5,1954.1,1.0]
[1617298149085,8.74,1954.5,1954.1,1.0]
[1617298149285,8.34,1954.5,1954.2,4.2507]
[1617298149491,6.5117,1954.6,1954.4,0.38]
[1617298149687,6.5117,1954.6,1954.4,8.05439]
[1617298149886,23.85110228,1954.5,1954.3,10.23252]
[1617298150087,4.54,1954.4,1954.1,1.0]
[1617298150286,2.51545885,1954.3,1954.1,1.0]
[1617298150911,17.97337714,1954.2,1954.1,8.67713]
[1617298151111,15.85,1954.2,1954.1,1.0]
[1617298152115,15.85,1954.2,1954.1,8.67705]
[1617298152311,15.85,1954.2,1954.1,1.0]
[1617298153111,26.95,1954.1,1953.7,4.75907324]
[1617298153316,18.05,1953.8,1953.7,4.75907324]
[1617298153936,0.4,1953.9,1953.7,4.75907324]
[1617298154160,30.0,1954.0,1953.4,12.79353]
[1617298154362,8.9624406,1953.9,1953.4,12.79353]
[1617298154560,49.2724,1953.8,1953.2,8.21352024]
[1617298154765,8.66930466,1953.7,1953.2,8.21352024]
[1617298154961,8.66930466,1953.7,1953.2,7.96026]
[1617298155160,8.66930466,1953.7,1953.2,7.68026]
[1617298155359,38.3,1953.6,1953.2,7.68026]
[1617298155560,7.04,1953.5,1953.2,7.68026]
[1617298155760,9.0761,1953.5,1953.2,7.68026]
[1617298155959,5.9,1953.4,1953.2,7.68026]
[1617298156196,5.9,1953.4,1953.2,13.5682732]
[1617298156993,15.6663,1953.4,1953.2,13.5682732]
[1617298157593,22.23930466,1953.3,1953.2,9.7282632]
[1617298157795,19.55,1953.3,1953.2,9.7282632]
[1617298157993,16.5056,1953.4,1953.2,9.7282632]
[1617298158595,48.48930466,1953.3,1953.2,9.7282632]
[1617298158995,30.0,1953.3,1953.2,9.7282632]
[1617298159395,37.4185,1953.4,1953.2,9.7282632]
[1617298159796,6.7393,1953.4,1953.2,9.7282632]
[1617298160000,2.68930466,1953.5,1953.2,9.7282632]
[1617298160196,2.68930466,1953.5,1953.2,2.0480032]
[1617298160395,0.38,1953.6,1953.2,2.0480032]
[1617298160396,30.38,1953.6,1953.2,2.0480032]
[1617298160596,4.94,1953.5,1953.2,2.0480032]
[1617298160796,30.0,1953.4,1953.2,2.0480032]
[1617298160995,4.54,1953.5,1953.2,2.0480032]
[1617298161196,4.54,1953.5,1953.3,7.68053]
[1617298161607,27.45,1953.3,1953.2,1.14413301]
[1617298161809,23.46,1953.2,1953.1,11.23803]
[1617298162007,29.4527,1953.2,1953.1,11.23803]
[1617298162207,20.7927,1953.2,1953.1,1.0]
[1617298162407,8.5427,1953.2,1953.1,1.0]
[1617298163208,2.55,1953.2,1953.1,1.0]
[1617298163410,2.55,1953.2,1953.1,1.39]
[1617298163811,2.55,1953.2,1953.1,11.63082]
[1617298164033,2.55,1953.2,1953.1,14.44082]
[1617298164634,26.8324,1953.8,1953.2,0.371]
[1617298164635,21.8224,1953.8,1953.2,0.371]
[1617298164836,21.8224,1953.8,1953.7,8.08717]
[1617298165035,21.8224,1953.8,1953.7,17.28447]
[1617298165434,21.8224,1953.8,1953.7,11.480553]
[1617298167265,21.8224,1953.8,1953.7,14.840553]
[1617298167465,21.8224,1953.8,1953.7,15.230553]
[1617298167868,21.6744,1953.8,1953.7,15.230553]
[1617298168265,21.6744,1953.8,1953.7,21.440553]
[1617298168666,2.55,1953.8,1953.7,21.440553]
[1617298168865,14.1329,1954.1,1953.8,24.05]
[1617298168866,11.5666284,1954.1,1953.8,24.05]
[1617298169068,6.4507184,1954.1,1954.0,16.41909434]
[1617298169289,20.064,1954.6,1954.1,16.5]
[1617298169487,20.064,1954.6,1954.3,0.4]
[1617298169488,5.6,1954.6,1954.3,0.4]
[1617298169886,8.15,1954.6,1954.3,0.4]
[1617298170286,8.15,1954.6,1954.3,4.23694]
[1617298170491,8.15,1954.6,1954.4,7.67425]
[1617298170886,7.15,1954.6,1954.5,0.41]
[1617298171489,7.15,1954.6,1954.5,10.64275]
[1617298171688,7.15,1954.6,1954.5,20.09115]
[1617298171908,7.15,1954.6,1954.5,25.03115]
[1617298172307,7.15,1954.6,1954.5,30.04115]
[1617298172507,7.15,1954.6,1954.5,24.62115]
[1617298172907,7.15,1954.6,1954.5,25.02115]
[1617298173112,7.15,1954.6,1954.5,30.03115]
[1617298174530,7.15,1954.6,1954.5,31.23115]
[1617298174931,7.15,1954.6,1954.5,30.03115]
[1617298175735,6.15,1954.6,1954.5,30.03115]
[1617298177357,8.7,1954.6,1954.5,30.03115]
[1617298178758,8.7,1954.6,1954.5,31.23115]
[1617298179158,8.7,1954.6,1954.5,30.03115]
[1617298180182,8.7,1954.6,1954.5,31.23115]
[1617298180382,8.7,1954.6,1954.5,30.73115]
[1617298180785,7.7,1954.6,1954.5,31.14115]
[1617298181184,2.55,1954.9,1954.5,39.23521894]
[1617298181185,0.452,1954.9,1954.5,39.23521894]
[1617298181384,3.05,1955.0,1954.9,15.35]
[1617298181584,3.05,1955.0,1954.9,25.8404]
[1617298181784,3.05,1955.0,1954.9,26.1204]
[1617298182408,3.05,1955.0,1954.9,30.7004]
[1617298183210,3.05,1955.0,1954.9,38.7004]
[1617298183411,3.05,1955.0,1954.9,39.6477]
[1617298183811,1.0,1955.9,1954.9,39.6477]
[1617298184011,1.0,1955.9,1955.5,0.41]
[1617298184215,1.0,1955.9,1955.6,3.15928612]
[1617298184412,1.0,1955.9,1955.6,4.35928612]
[1617298184611,1.0,1955.9,1955.8,5.4]
[1617298184812,1.0,1955.9,1955.8,6.6]
[1617298184813,3.55,1955.9,1955.8,6.6]
[1617298185436,3.55,1955.9,1955.8,6.88]
[1617298185838,2.55,1955.9,1955.8,6.88]
[1617298187240,2.07954815,1955.9,1955.8,26.03]
[1617298187440,2.07954815,1955.9,1955.8,32.71]
[1617298187666,2.556,1956.7,1955.8,32.71]
[1617298187667,2.5618621,1956.7,1955.9,21.0]
[1617298187866,2.55,1956.7,1956.1,26.66170786]
[1617298188065,2.55,1956.7,1956.1,9.46170786]
[1617298188264,2.55,1956.7,1956.1,17.74170786]
[1617298188464,2.55,1956.7,1956.1,20.18684786]
[1617298189064,2.55,1956.7,1956.1,28.18684786]
[1617298189467,2.55,1956.7,1956.1,84.62847895]
[1617298189468,6.0268272,1956.2,1956.1,84.62847895]
[1617298189667,6.0268272,1956.2,1956.1,71.96680477]
[1617298189865,0.9172472,1956.2,1956.1,71.96680477]
[1617298190068,0.15079919,1956.2,1956.1,71.05985892]
[1617298190892,1.70079919,1956.7,1956.4,11.49705]
[1617298191093,1.70079919,1956.7,1956.6,11.25]
[1617298191293,1.70079919,1956.7,1956.6,6.61]
[1617298191495,1.70079919,1956.7,1956.6,8.00961251]
[1617298191695,1.71855038,1956.7,1956.5,3.15511782]
[1617298191894,0.8670972,1957.4,1956.6,27.5]
[1617298191895,0.01775089,1956.8,1956.6,27.5]
[1617298192097,0.66,1957.4,1956.9,0.09406894]
[1617298192098,0.006,1957.0,1956.9,0.09406894]
[1617298192297,0.66,1957.4,1956.9,30.8699579]
[1617298192298,0.01183169,1957.2,1956.9,30.8699579]
[1617298192495,0.01183169,1957.2,1956.9,32.56337445]
[1617298192697,0.01183131,1957.3,1957.0,5.85406894]
[1617298192924,0.01183131,1957.3,1957.2,0.38]
[1617298193323,0.01183131,1957.3,1956.9,0.09406894]
[1617298193324,0.01183131,1957.3,1957.0,5.332]
[1617298193524,0.01183131,1957.3,1957.1,0.41]
[1617298193923,0.01183131,1957.3,1957.2,5.01]
[1617298194128,0.01183131,1957.3,1957.2,7.6632]
[1617298194325,0.671831,1957.4,1957.2,19.5015178]
[1617298194524,0.03183057,1957.5,1957.4,13.26183131]
[1617298194725,0.00014367,1957.6,1957.5,8.95]
[1617298194923,0.00014367,1957.6,1957.5,16.62559178]
[1617298195123,0.00014367,1957.6,1957.5,9.63559178]
[1617298195327,0.03014367,1957.9,1957.5,12.53376846]
[1617298195545,0.03014367,1957.9,1957.7,7.66118]
[1617298195748,18.18657242,1958.0,1957.9,7.4]
[1617298195948,18.18657242,1958.0,1957.9,6.6557]
[1617298196347,17.43657242,1958.0,1957.9,12.9057]
[1617298196547,17.43657242,1958.0,1957.9,14.31625]
[1617298196946,0.14803873,1958.3,1957.9,14.31625]
[1617298197149,0.22705422,1958.5,1958.2,0.39]
[1617298197348,0.22705422,1958.5,1958.4,13.9]
[1617298197349,0.0198,1958.5,1958.4,13.9]
[1617298197547,0.0198,1958.5,1958.4,0.4]
[1617298197746,0.0198,1958.5,1958.3,8.01617]
[1617298198368,0.0198,1958.5,1958.4,19.38]
[1617298198569,1.0,1958.9,1958.5,10.4]
[1617298198768,1.0,1958.9,1958.6,8.03719]
[1617298199581,1.20718075,1958.9,1958.6,8.22548551]
[1617298199782,2.9,1958.7,1958.6,8.22548551]
[1617298200796,1.9,1958.7,1958.6,8.22548551]
[1617298201392,1.9,1958.7,1958.6,9.23357854]
[1617298201795,1.9,1958.7,1958.6,7.84548551]
[1617298201997,1.50996008,1958.7,1958.6,3.33587664]
[1617298202394,1.50996008,1958.7,1958.6,3.74587664]
[1617298202595,1.28917954,1958.7,1958.6,7.65719]
[1617298202995,1.28917954,1958.7,1958.6,7.60719]
[1617298203416,1.28917954,1958.7,1958.6,7.99719]
[1617298204619,1.28917954,1958.7,1958.6,8.18377257]
[1617298205619,1.28917954,1958.7,1958.6,7.79377257]
[1617298205818,0.28917954,1958.7,1958.6,7.79377257]
[1617298206638,0.946,1958.9,1958.7,8.3]
[1617298206840,7.14277865,1959.0,1958.8,35.81287622]
[1617298207038,7.14277865,1959.0,1958.9,36.22894382]
[1617298207039,6.13376874,1959.0,1958.9,36.22894382]
[1617298207241,4.27908269,1959.0,1958.9,36.22894382]
[1617298207438,4.27908269,1959.0,1958.9,40.45068066]
[1617298207637,4.27908269,1959.0,1958.9,39.51668066]
[1617298207838,4.27908269,1959.0,1958.9,13.76730297]
[1617298208038,4.27908269,1959.0,1958.9,12.65894382]
[1617298208669,8.269e-05,1959.0,1958.9,13.76730297]
[1617298209268,0.03240449,1959.4,1959.0,19.3]
[1617298209469,0.03240449,1959.4,1959.3,11.73]
[1617298209669,0.03240449,1959.4,1959.3,19.67034886]
[1617298209872,0.03240449,1959.4,1959.3,22.61034886]
[1617298210271,0.03240449,1959.4,1959.3,11.26034886]
[1617298210468,1.25240449,1959.5,1959.4,7.0]